[Event "Kupreichik Memorial Rapid 2019"]
[Site "Minsk"]
[Date "2019.08.17"]
[Round "10.17"]
[White "Kalinin, Dmitry"]
[Black "Zvereva, Margarita"]
[Result "0-1"]
[ECO "D35"]
[WhiteElo "2119"]
[BlackElo "1678"]
[Annotator "NA"]
[PlyCount "90"]
[EventDate "2019.08.15"]
[EventType "swiss"]
[EventCountry "BLR"]
[SourceTitle "playchess.com"]
[Source "ChessBase"]
[SourceQuality "1"]
[TimeControl "900+10"]

1. d4 {[%emt 0:00:00]} d5 {[%emt 0:00:00]} 2. c4 {[%emt 0:00:00]} e6 {[%emt 0:00:00]} 3. Nc3 {[%emt 0:00:00]} Nf6 {[%emt 0:00:00]} 4. cxd5 {[%emt 0:00:04]} exd5 {[%emt 0:00:00]} 5. Qc2 {[%emt 0:00:04]} Be7 {[%emt 0:00:31]} 6. Bf4 {[%emt 0:00:10]} c6 {[%emt 0:00:10]} 7. e3 {[%emt 0:00:07]} Nbd7 {[%emt 0:00:27]} 8. h3 {[%emt 0:00:01]} Nf8 {[%emt 0:00:07]} 9. Bd3 {[%emt 0:00:47]} Ng6 {[%emt 0:00:37]} 10. Bg5 {[%emt 0:00:13]} Nd7 {[%emt 0:01:22]} 11. Bxe7 {[%emt 0:00:16]} Qxe7 {[%emt 0:00:06]} 12. Nge2 {[%emt 0:00:17]} Qg5 {[%emt 0:01:16]} 13. g3 {[%emt 0:01:27]} Nf6 {[%emt 0:00:39]} 14. O-O-O {[%emt 0:01:03]} Bd7 {[%emt 0:01:08]} 15. h4 {[%emt 0:04:19]} Qh5 {[%emt 0:00:39]} 16. Nf4 {[%emt 0:02:23]} Nxf4 {[%emt 0:00:35]} 17. gxf4 {[%emt 0:00:01]} g6 {[%emt 0:01:35]} 18. Qb3 {[%emt 0:01:18]} b6 {[%emt 0:01:01]} 19. Qa3 {[%emt 0:00:02]} Qg4 {[%emt 0:00:43]} 20. f5 {[%emt 0:00:42]} gxf5 {[%emt 0:01:42]} 21. Qd6 {[%emt 0:01:16]} Qg6 {[%emt 0:00:18]} 22. h5 {[%emt 0:00:28]} Qh6 {[%emt 0:00:29]} 23. Bxf5 {[%emt 0:01:01]} O-O-O {[%emt 0:00:55]} 24. Qxc6+ {[%emt 0:00:53]} Kb8 {[%emt 0:00:04]} 25. Qd6+ {[%emt 0:01:00]} Kb7 {[%emt 0:00:26]} 26. Bd3 {[%emt 0:00:10]} Bg4 {[%emt 0:00:41]} 27. Qa3 {[%emt 0:00:25]} Bxd1 {[%emt 0:00:17]} 28. Ba6+ {[%emt 0:00:02]} Kb8 {[%emt 0:00:09]} 29. Rxd1 {[%emt 0:00:44]} Ne4 {[%emt 0:00:44]} 30. Qe7 {[%emt 0:00:26]} Qc6 {[%emt 0:00:15]} 31. Bb5 {[%emt 0:00:03]} Qc7 {[%emt 0:00:25]} 32. Qxc7+ {[%emt 0:00:06]} Kxc7 {[%emt 0:00:01]} 33. Nxe4 {[%emt 0:00:06]} dxe4 {[%emt 0:00:02]} 34. Kd2 {[%emt 0:00:07]} Rd5 {[%emt 0:00:16]} 35. Be2 {[%emt 0:00:08]} Rf5 {[%emt 0:00:15]} 36. Rc1+ {[%emt 0:00:02]} Kd6 {[%emt 0:00:09]} 37. Ke1 {[%emt 0:00:27]} Rg8 {[%emt 0:00:12]} 38. Kf1 {[%emt 0:00:02]} Rfg5 {[%emt 0:00:12]} 39. Ke1 {[%emt 0:00:01]} Rg1+ {[%emt 0:00:08]} 40. Bf1 {[%emt 0:00:40]} Rh1 {[%emt 0:00:08]} 41. d5 {[%emt 0:00:09]} Kxd5 {[%emt 0:00:57]} 42. Kd2 {[%emt 0:00:10]} Kd6 {[%emt 0:00:18]} 43. Bc4 {[%emt 0:00:04]} Rxc1 {[%emt 0:00:06]} 44. Kxc1 {[%emt 0:00:01]} Rc8 {[%emt 0:00:03]} 45. Kd2 Ke5 0-1

[Event "Kupreichik Memorial Rapid 2019"]
[Site "Minsk"]
[Date "2019.08.17"]
[Round "10.18"]
[White "Sadovnikov, Konstantin"]
[Black "Kharin, Mikhail"]
[Result "0-1"]
[ECO "B06"]
[WhiteElo "1798"]
[BlackElo "2156"]
[Annotator "NA"]
[PlyCount "136"]
[EventDate "2019.08.15"]
[EventType "swiss"]
[EventCountry "BLR"]
[SourceTitle "playchess.com"]
[Source "ChessBase"]
[SourceQuality "1"]
[TimeControl "900+10"]

1. e4 {[%emt 0:00:00]} g6 {[%emt 0:00:00]} 2. d4 {[%emt 0:00:00]} Bg7 {[%emt 0:00:00]} 3. Nc3 {[%emt 0:00:00]} d6 {[%emt 0:00:00]} 4. Be3 {[%emt 0:00:00]} a6 {[%emt 0:00:00]} 5. Qd2 {[%emt 0:00:00]} b5 {[%emt 0:00:00]} 6. O-O-O {[%emt 0:00:00]} Bb7 {[%emt 0:00:00]} 7. f3 {[%emt 0:00:00]} Nd7 {[%emt 0:00:05]} 8. h4 {[%emt 0:00:05]} h5 {[%emt 0:00:03]} 9. Nh3 {[%emt 0:00:01]} c5 {[%emt 0:01:38]} 10. Ne2 {[%emt 0:00:15]} Ngf6 {[%emt 0:02:11]} 11. Ng5 {[%emt 0:00:35]} Rc8 {[%emt 0:01:44]} 12. Kb1 {[%emt 0:00:10]} O-O {[%emt 0:00:15]} 13. Rg1 {[%emt 0:00:28]} Nb6 {[%emt 0:00:02]} 14. Nc1 {[%emt 0:00:13]} cxd4 {[%emt 0:01:23]} 15. Bxd4 {[%emt 0:00:01]} Nc4 {[%emt 0:00:00]} 16. Bxc4 {[%emt 0:00:38]} Rxc4 {[%emt 0:00:02]} 17. Nb3 {[%emt 0:03:18]} Qc7 {[%emt 0:00:59]} 18. Qf2 {[%emt 0:01:29]} Rc8 {[%emt 0:00:26]} 19. Rc1 {[%emt 0:00:02]} Rc6 {[%emt 0:04:13]} 20. Qd2 {[%emt 0:02:18]} Rc4 {[%emt 0:01:11]} 21. Qf2 {[%emt 0:00:02]} Rc6 {[%emt 0:00:17]} 22. Rgd1 {[%emt 0:00:18]} a5 {[%emt 0:00:19]} 23. Be3 {[%emt 0:00:40]} e5 {[%emt 0:00:54]} 24. Qd2 {[%emt 0:01:01]} b4 {[%emt 0:00:25]} 25. Na1 {[%emt 0:03:07]} Rc4 {[%emt 0:00:08]} 26. Qxd6 {[%emt 0:00:19]} a4 {[%emt 0:00:39]} 27. Qxc7 {[%emt 0:01:07]} R4xc7 {[%emt 0:00:05]} 28. Bd2 {[%emt 0:00:19]} Bf8 {[%emt 0:00:01]} 29. c3 {[%emt 0:00:12]} Ba6 {[%emt 0:00:03]} 30. Be1 {[%emt 0:00:35]} Be2 {[%emt 0:00:32]} 31. Rd2 {[%emt 0:00:18]} Bb5 {[%emt 0:00:30]} 32. Bg3 {[%emt 0:00:50]} Nd7 {[%emt 0:00:48]} 33. Rd5 {[%emt 0:01:31]} Bc4 {[%emt 0:00:42]} 34. Rd2 {[%emt 0:00:19]} bxc3 {[%emt 0:00:18]} 35. bxc3 {[%emt 0:00:21]} Ba3 {[%emt 0:00:01]} 36. Re1 {[%emt 0:00:15]} Rb7+ {[%emt 0:00:48]} 37. Kc2 {[%emt 0:00:01]} Bxa2 {[%emt 0:00:02]} 38. Rxd7 {[%emt 0:00:20]} Rxd7 {[%emt 0:00:05]} 39. Bxe5 {[%emt 0:00:01]} Bc4 {[%emt 0:00:07]} 40. Bd4 {[%emt 0:00:11]} Rb8 {[%emt 0:00:15]} 41. Kd2 {[%emt 0:00:16]} Rb2+ {[%emt 0:00:19]} 42. Ke3 {[%emt 0:00:00]} Rxg2 {[%emt 0:00:02]} 43. Rb1 {[%emt 0:00:16]} Bd6 {[%emt 0:00:07]} 44. e5 {[%emt 0:00:09]} Be7 {[%emt 0:00:26]} 45. Ne4 {[%emt 0:00:17]} Rd8 {[%emt 0:00:09]} 46. Rb7 {[%emt 0:00:08]} Bxh4 {[%emt 0:00:02]} 47. Rb4 {[%emt 0:00:06]} Bb3 {[%emt 0:00:12]} 48. Nxb3 {[%emt 0:00:06]} axb3 {[%emt 0:00:02]} 49. Rxb3 {[%emt 0:00:01]} Bf2+ {[%emt 0:00:09]} 50. Kd3 {[%emt 0:00:16]} h4 {[%emt 0:00:05]} 51. Nf6+ {[%emt 0:00:15]} Kg7 {[%emt 0:00:04]} 52. Ng4 {[%emt 0:00:04]} Bxd4 {[%emt 0:00:02]} 53. cxd4 {[%emt 0:00:02]} h3 {[%emt 0:00:06]} 54. Rb1 {[%emt 0:00:07]} Ra2 {[%emt 0:00:49]} 55. Rh1 {[%emt 0:00:06]} Ra4 {[%emt 0:00:09]} 56. Rxh3 {[%emt 0:00:06]} Raxd4+ {[%emt 0:00:01]} 57. Ke3 {[%emt 0:00:01]} Rd3+ {[%emt 0:00:04]} 58. Ke2 {[%emt 0:00:19]} Rd2+ {[%emt 0:00:04]} 59. Ke3 {[%emt 0:00:03]} R8d3+ {[%emt 0:00:11]} 60. Ke4 {[%emt 0:00:02]} Rd4+ {[%emt 0:00:00]} 61. Ke3 {[%emt 0:00:01]} R2d3+ {[%emt 0:00:02]} 62. Ke2 {[%emt 0:00:00]} Ra3 {[%emt 0:00:41]} 63. Nf6 {[%emt 0:00:24]} g5 {[%emt 0:00:01]} 64. Rg3 {[%emt 0:00:42]} Kg6 {[%emt 0:00:00]} 65. Ng4 {[%emt 0:00:25]} Rb4 {[%emt 0:00:03]} 66. Nf2 {[%emt 0:00:12]} Rb2+ {[%emt 0:00:04]} 67. Kf1 {[%emt 0:00:01]} Ra1+ {[%emt 0:00:01]} 68. Kg2 {[%emt 0:00:02]} Raa2 {[%emt 0:00:01]} 0-1

[Event "Kupreichik Memorial Rapid 2019"]
[Site "Minsk"]
[Date "2019.08.17"]
[Round "10.19"]
[White "Kochetkov, Vitali"]
[Black "Dvurechensky, Viacheslav"]
[Result "1-0"]
[ECO "A12"]
[WhiteElo "2266"]
[BlackElo "1840"]
[Annotator "NA"]
[PlyCount "49"]
[EventDate "2019.08.15"]
[EventType "swiss"]
[EventCountry "BLR"]
[SourceTitle "playchess.com"]
[Source "ChessBase"]
[SourceQuality "1"]
[TimeControl "900+10"]

1. c4 {[%emt 0:00:00]} c6 {[%emt 0:00:00]} 2. b3 {[%emt 0:00:06]} Nf6 {[%emt 0:00:03]} 3. Bb2 {[%emt 0:00:01]} d5 {[%emt 0:00:13]} 4. Nf3 {[%emt 0:00:06]} Bf5 {[%emt 0:00:19]} 5. e3 {[%emt 0:00:11]} e6 {[%emt 0:00:12]} 6. Be2 {[%emt 0:00:09]} h6 {[%emt 0:00:06]} 7. d3 {[%emt 0:00:42]} Be7 {[%emt 0:00:27]} 8. Nbd2 {[%emt 0:00:05]} Na6 {[%emt 0:00:32]} 9. Ne5 {[%emt 0:00:12]} dxc4 {[%emt 0:01:29]} 10. Ndxc4 {[%emt 0:00:30]} Bb4+ {[%emt 0:01:00]} 11. Kf1 {[%emt 0:00:12]} O-O {[%emt 0:00:33]} 12. g4 {[%emt 0:00:09]} Bh7 {[%emt 0:00:11]} 13. h4 {[%emt 0:00:07]} Nd7 {[%emt 0:01:44]} 14. Nxd7 {[%emt 0:00:38]} Qxd7 {[%emt 0:00:07]} 15. g5 {[%emt 0:00:06]} f6 {[%emt 0:01:30]} 16. Rg1 {[%emt 0:02:40]} Bf5 {[%emt 0:03:48]} 17. Rg3 {[%emt 0:02:17]} fxg5 {[%emt 0:02:23]} 18. e4 {[%emt 0:00:55]} Bh7 {[%emt 0:01:16]} 19. hxg5 {[%emt 0:01:38]} Qf7 {[%emt 0:00:39]} 20. Rf3 {[%emt 0:00:51]} Qe7 {[%emt 0:00:47]} 21. gxh6 {[%emt 0:00:26]} Qh4 {[%emt 0:00:51]} 22. Kg2 {[%emt 0:00:46]} Rxf3 {[%emt 0:00:15]} 23. Bxf3 {[%emt 0:00:02]} Qxh6 {[%emt 0:00:11]} 24. Qe2 {[%emt 0:01:15]} b5 25. Ne5 1-0

[Event "Kupreichik Memorial Rapid 2019"]
[Site "Minsk"]
[Date "2019.08.17"]
[Round "10.20"]
[White "Romanovskij, Nikita"]
[Black "Shakhadanau, Henadzi"]
[Result "0-1"]
[ECO "E15"]
[WhiteElo "1869"]
[BlackElo "1868"]
[Annotator "NA"]
[PlyCount "146"]
[EventDate "2019.08.15"]
[EventType "swiss"]
[EventCountry "BLR"]
[SourceTitle "playchess.com"]
[Source "ChessBase"]
[SourceQuality "1"]
[TimeControl "900+10"]

1. d4 {[%emt 0:00:00]} Nf6 {[%emt 0:00:00]} 2. Nf3 {[%emt 0:00:00]} b6 {[%emt 0:00:00]} 3. c4 {[%emt 0:00:09]} e6 {[%emt 0:00:00]} 4. g3 {[%emt 0:00:03]} Ba6 {[%emt 0:00:00]} 5. b3 {[%emt 0:00:14]} Bb4+ {[%emt 0:00:00]} 6. Bd2 {[%emt 0:00:04]} Be7 {[%emt 0:00:00]} 7. Bg2 {[%emt 0:00:01]} c6 {[%emt 0:00:04]} 8. O-O {[%emt 0:00:13]} O-O {[%emt 0:00:09]} 9. Qc2 {[%emt 0:00:06]} d5 {[%emt 0:00:03]} 10. Ne5 {[%emt 0:00:43]} Nfd7 {[%emt 0:00:03]} 11. Nxd7 {[%emt 0:01:09]} Nxd7 {[%emt 0:00:06]} 12. e4 {[%emt 0:00:05]} Rc8 {[%emt 0:00:40]} 13. Be3 {[%emt 0:01:49]} Nf6 {[%emt 0:01:11]} 14. h3 {[%emt 0:01:12]} c5 {[%emt 0:01:18]} 15. Rd1 {[%emt 0:02:05]} cxd4 {[%emt 0:00:21]} 16. Bxd4 {[%emt 0:00:03]} Qc7 {[%emt 0:00:40]} 17. exd5 {[%emt 0:01:07]} exd5 {[%emt 0:00:07]} 18. Nd2 {[%emt 0:00:45]} dxc4 {[%emt 0:00:05]} 19. bxc4 {[%emt 0:00:02]} Rfd8 {[%emt 0:00:54]} 20. Be3 {[%emt 0:01:43]} Bb7 {[%emt 0:00:12]} 21. Bxb7 Qxb7 {[%emt 0:00:01]} 22. Nb3 {[%emt 0:00:37]} Rxd1+ {[%emt 0:01:13]} 23. Rxd1 {[%emt 0:00:03]} h6 {[%emt 0:00:19]} 24. Qe2 {[%emt 0:01:00]} Qe4 {[%emt 0:01:34]} 25. Rc1 {[%emt 0:00:54]} Ba3 {[%emt 0:00:44]} 26. Rc2 {[%emt 0:00:08]} Nd5 {[%emt 0:01:03]} 27. Nc5 {[%emt 0:01:25]} Bxc5 {[%emt 0:01:49]} 28. cxd5 {[%emt 0:00:26]} Qxd5 {[%emt 0:01:52]} 29. Bf4 {[%emt 0:01:01]} Qf5 {[%emt 0:00:23]} 30. Kg2 {[%emt 0:00:16]} Rd8 {[%emt 0:00:49]} 31. Rc3 {[%emt 0:00:48]} Qd5+ {[%emt 0:00:11]} 32. Kh2 {[%emt 0:00:25]} Qd1 {[%emt 0:00:37]} 33. Rc2 {[%emt 0:01:18]} Qxe2 34. Rxe2 {[%emt 0:00:01]} Kf8 {[%emt 0:00:18]} 35. Rc2 {[%emt 0:00:14]} Rd3 {[%emt 0:00:19]} 36. Kg2 {[%emt 0:00:21]} Ke7 {[%emt 0:00:40]} 37. Kf1 {[%emt 0:00:20]} Kd7 {[%emt 0:00:56]} 38. Ke2 {[%emt 0:00:02]} Ra3 {[%emt 0:00:05]} 39. Be5 {[%emt 0:00:09]} g6 {[%emt 0:00:17]} 40. Bf4 {[%emt 0:00:16]} h5 {[%emt 0:00:01]} 41. Bc1 {[%emt 0:00:03]} Ra4 {[%emt 0:00:05]} 42. Bf4 {[%emt 0:00:03]} Kc6 {[%emt 0:00:11]} 43. Kd3 {[%emt 0:00:18]} Ra3+ {[%emt 0:00:03]} 44. Ke2 {[%emt 0:00:02]} Kb5 {[%emt 0:01:04]} 45. Bc1 {[%emt 0:00:24]} Ra4 {[%emt 0:00:07]} 46. Bf4 {[%emt 0:00:03]} Rc4 {[%emt 0:00:04]} 47. Rd2 {[%emt 0:00:05]} Kc6 {[%emt 0:00:03]} 48. Rb2 {[%emt 0:00:32]} b5 {[%emt 0:00:02]} 49. Kd3 {[%emt 0:00:04]} a5 {[%emt 0:00:23]} 50. Re2 {[%emt 0:00:08]} Rd4+ {[%emt 0:00:22]} 51. Kc3 {[%emt 0:00:00]} b4+ {[%emt 0:00:09]} 52. Kc2 {[%emt 0:00:01]} Kb5 {[%emt 0:00:06]} 53. Re5 {[%emt 0:00:16]} Rc4+ {[%emt 0:00:13]} 54. Kb2 {[%emt 0:00:09]} Kc6 {[%emt 0:00:12]} 55. Re8 {[%emt 0:00:20]} a4 {[%emt 0:00:27]} 56. Rc8+ {[%emt 0:00:04]} Kd5 {[%emt 0:00:03]} 57. Rd8+ {[%emt 0:00:13]} Ke4 {[%emt 0:00:01]} 58. Ra8 {[%emt 0:00:25]} Bd4+ {[%emt 0:00:06]} 59. Kb1 {[%emt 0:00:01]} a3 {[%emt 0:00:08]} 60. Bd2 {[%emt 0:00:05]} Bxf2 {[%emt 0:00:12]} 61. g4 {[%emt 0:00:01]} hxg4 {[%emt 0:00:05]} 62. hxg4 {[%emt 0:00:01]} Kd3 {[%emt 0:00:19]} 63. Rd8+ {[%emt 0:00:13]} Bd4 {[%emt 0:00:22]} 64. Bg5 {[%emt 0:00:08]} Ke4 {[%emt 0:00:16]} 65. Bd2 {[%emt 0:00:15]} Kd3 {[%emt 0:00:43]} 66. Bf4 {[%emt 0:00:01]} Ke4 {[%emt 0:00:13]} 67. Bd2 {[%emt 0:00:01]} Bc3 {[%emt 0:00:24]} 68. Bc1 {[%emt 0:00:00]} f5 {[%emt 0:00:13]} 69. gxf5 {[%emt 0:00:02]} gxf5 {[%emt 0:00:01]} 70. Re8+ {[%emt 0:00:01]} Kf3 {[%emt 0:00:06]} 71. Bg5 {[%emt 0:00:32]} f4 {[%emt 0:00:05]} 72. Kc2 {[%emt 0:00:15]} Rc5 {[%emt 0:00:40]} 73. Be7 {[%emt 0:00:51]} Re5 {[%emt 0:00:03]} 0-1

[Event "Kupreichik Memorial Rapid 2019"]
[Site "Minsk"]
[Date "2019.08.17"]
[Round "10.21"]
[White "Zverev, Lev"]
[Black "Naumovich, Yaroslav"]
[Result "0-1"]
[ECO "B15"]
[WhiteElo "1881"]
[BlackElo "1868"]
[Annotator "NA"]
[PlyCount "116"]
[EventDate "2019.08.15"]
[EventType "swiss"]
[EventCountry "BLR"]
[SourceTitle "playchess.com"]
[Source "ChessBase"]
[SourceQuality "1"]
[TimeControl "900+10"]

1. e4 {[%emt 0:00:00]} c6 {[%emt 0:00:00]} 2. d4 d5 3. Nc3 {[%emt 0:00:00]} dxe4 {[%emt 0:00:00]} 4. Nxe4 {[%emt 0:00:00]} Nf6 {[%emt 0:00:00]} 5. Nxf6+ {[%emt 0:00:00]} exf6 {[%emt 0:00:00]} 6. c3 {[%emt 0:00:00]} Bd6 {[%emt 0:00:00]} 7. Bd3 {[%emt 0:00:02]} O-O {[%emt 0:00:02]} 8. Qc2 {[%emt 0:00:00]} Re8+ {[%emt 0:00:03]} 9. Ne2 {[%emt 0:00:01]} h6 {[%emt 0:00:02]} 10. O-O {[%emt 0:00:03]} Nd7 {[%emt 0:00:07]} 11. Bf4 {[%emt 0:00:11]} Qc7 {[%emt 0:00:02]} 12. Bg3 {[%emt 0:00:03]} Nf8 {[%emt 0:00:02]} 13. Rfe1 {[%emt 0:00:05]} Bd7 {[%emt 0:00:09]} 14. c4 {[%emt 0:00:03]} Rad8 {[%emt 0:00:23]} 15. Rad1 {[%emt 0:00:09]} Bc8 {[%emt 0:00:13]} 16. Qc3 {[%emt 0:00:14]} Bxg3 {[%emt 0:01:02]} 17. Nxg3 {[%emt 0:00:04]} Ne6 {[%emt 0:00:04]} 18. Bc2 {[%emt 0:00:08]} c5 {[%emt 0:01:17]} 19. d5 {[%emt 0:00:02]} Nd4 {[%emt 0:00:01]} 20. Bb1 {[%emt 0:00:25]} b6 {[%emt 0:00:26]} 21. Qd3 {[%emt 0:00:03]} g6 {[%emt 0:00:02]} 22. Ne4 {[%emt 0:00:09]} Kg7 {[%emt 0:00:07]} 23. Ng3 {[%emt 0:01:04]} Bf5 {[%emt 0:01:02]} 24. Nxf5+ {[%emt 0:00:03]} Nxf5 {[%emt 0:00:01]} 25. g3 {[%emt 0:00:39]} Nd4 {[%emt 0:00:11]} 26. Kg2 {[%emt 0:00:04]} Qd7 {[%emt 0:00:18]} 27. h4 {[%emt 0:00:09]} h5 {[%emt 0:00:10]} 28. b4 {[%emt 0:00:24]} Qa4 {[%emt 0:01:59]} 29. bxc5 {[%emt 0:00:23]} bxc5 {[%emt 0:00:02]} 30. Qc3 {[%emt 0:01:55]} Rb8 {[%emt 0:01:16]} 31. Bd3 {[%emt 0:00:45]} Rxe1 {[%emt 0:02:43]} 32. Rxe1 {[%emt 0:00:12]} Qxa2 {[%emt 0:00:02]} 33. Ra1 {[%emt 0:00:53]} Qb3 {[%emt 0:00:01]} 34. Qd2 {[%emt 0:00:00]} Qb6 {[%emt 0:00:57]} 35. Qf4 {[%emt 0:00:18]} Re8 {[%emt 0:00:35]} 36. Rb1 {[%emt 0:00:19]} Qd8 {[%emt 0:03:28]} 37. Rb7 {[%emt 0:00:29]} Re7 {[%emt 0:00:01]} 38. Rb8 {[%emt 0:00:17]} Qd7 {[%emt 0:00:02]} 39. Be4 {[%emt 0:01:42]} Re8 {[%emt 0:01:06]} 40. Rb1 {[%emt 0:00:25]} a5 {[%emt 0:00:15]} 41. Bd3 {[%emt 0:00:09]} a4 {[%emt 0:00:12]} 42. Rb6 {[%emt 0:00:02]} Qd8 {[%emt 0:01:01]} 43. Ra6 {[%emt 0:00:02]} g5 {[%emt 0:01:26]} 44. hxg5 {[%emt 0:00:23]} fxg5 {[%emt 0:00:01]} 45. Qd2 {[%emt 0:00:01]} Re5 {[%emt 0:00:01]} 46. Rxa4 {[%emt 0:00:04]} Qf6 {[%emt 0:00:01]} 47. Qd1 {[%emt 0:00:10]} g4 {[%emt 0:00:05]} 48. Ra5 {[%emt 0:00:45]} Qe7 {[%emt 0:00:33]} 49. Ra1 {[%emt 0:00:10]} Nf3 {[%emt 0:00:12]} 50. Bf1 {[%emt 0:00:24]} Re1 {[%emt 0:00:24]} 51. d6 {[%emt 0:00:51]} Qe4 {[%emt 0:00:12]} 52. Qxe1 {[%emt 0:01:11]} Nxe1+ {[%emt 0:00:02]} 53. Kh2 {[%emt 0:00:01]} Nf3+ {[%emt 0:00:02]} 54. Kg2 {[%emt 0:00:01]} Nd2+ {[%emt 0:00:44]} 55. Kh2 {[%emt 0:00:04]} Nxf1+ {[%emt 0:00:04]} 56. Rxf1 {[%emt 0:00:02]} Qd4 {[%emt 0:00:02]} 57. Rd1 {[%emt 0:00:10]} Qxd1 {[%emt 0:00:02]} 58. f4 {[%emt 0:00:02]} Qxd6 {[%emt 0:00:04]} 0-1

[Event "Kupreichik Memorial Rapid 2019"]
[Site "Minsk"]
[Date "2019.08.17"]
[Round "10.22"]
[White "Arlou, Valery"]
[Black "Kiryliuk, Ilya"]
[Result "0-1"]
[ECO "D02"]
[WhiteElo "1759"]
[BlackElo "1948"]
[Annotator "NA"]
[PlyCount "98"]
[EventDate "2019.08.15"]
[EventType "swiss"]
[EventCountry "BLR"]
[SourceTitle "playchess.com"]
[Source "ChessBase"]
[SourceQuality "1"]
[TimeControl "900+10"]

1. d4 {[%emt 0:00:00]} Nf6 {[%emt 0:00:00]} 2. Nf3 {[%emt 0:00:00]} d5 {[%emt 0:00:04]} 3. Bf4 {[%emt 0:00:04]} e6 {[%emt 0:00:06]} 4. e3 {[%emt 0:00:02]} Bd6 {[%emt 0:00:06]} 5. Bxd6 {[%emt 0:00:14]} Qxd6 {[%emt 0:00:16]} 6. Nbd2 {[%emt 0:00:13]} O-O {[%emt 0:00:06]} 7. Ne5 {[%emt 0:00:22]} c5 {[%emt 0:00:11]} 8. Be2 {[%emt 0:00:34]} Nc6 {[%emt 0:00:06]} 9. Ndf3 {[%emt 0:01:03]} Nd7 {[%emt 0:00:08]} 10. Nxd7 {[%emt 0:00:43]} Bxd7 {[%emt 0:00:03]} 11. O-O {[%emt 0:00:06]} e5 {[%emt 0:00:09]} 12. dxe5 {[%emt 0:00:49]} Nxe5 {[%emt 0:00:03]} 13. Nxe5 {[%emt 0:00:50]} Qxe5 {[%emt 0:00:02]} 14. c3 {[%emt 0:00:06]} Rad8 {[%emt 0:00:15]} 15. Bf3 {[%emt 0:00:21]} Bc6 {[%emt 0:00:10]} 16. Re1 {[%emt 0:00:18]} f5 {[%emt 0:00:17]} 17. Qb3 {[%emt 0:00:39]} Kh8 {[%emt 0:00:12]} 18. Qa3 {[%emt 0:00:11]} Qd6 {[%emt 0:02:23]} 19. Rad1 {[%emt 0:01:57]} f4 {[%emt 0:00:48]} 20. e4 {[%emt 0:01:06]} d4 {[%emt 0:00:22]} 21. e5 {[%emt 0:00:07]} Qg6 {[%emt 0:00:55]} 22. Bxc6 {[%emt 0:00:23]} bxc6 {[%emt 0:00:01]} 23. f3 {[%emt 0:01:59]} Qc2 {[%emt 0:00:32]} 24. cxd4 {[%emt 0:01:54]} cxd4 {[%emt 0:00:13]} 25. Rxd4 {[%emt 0:01:19]} Rb8 {[%emt 0:01:31]} 26. e6 {[%emt 0:01:00]} c5 {[%emt 0:00:49]} 27. Rd7 {[%emt 0:00:14]} Rxb2 {[%emt 0:00:13]} 28. Qxb2 {[%emt 0:00:43]} Qxb2 {[%emt 0:00:02]} 29. e7 {[%emt 0:00:02]} Re8 {[%emt 0:00:01]} 30. Rd8 {[%emt 0:00:02]} Qb5 {[%emt 0:00:23]} 31. Red1 {[%emt 0:00:31]} Kg8 {[%emt 0:00:02]} 32. Rxe8+ {[%emt 0:00:04]} Qxe8 {[%emt 0:00:02]} 33. Rd8 {[%emt 0:00:01]} Kf7 {[%emt 0:00:01]} 34. Rxe8 {[%emt 0:00:27]} Kxe8 {[%emt 0:00:02]} 35. Kf2 {[%emt 0:00:05]} Kxe7 {[%emt 0:00:01]} 36. Ke2 {[%emt 0:00:01]} Kd6 {[%emt 0:00:02]} 37. Kd3 {[%emt 0:00:03]} Kd5 {[%emt 0:00:01]} 38. Kc3 {[%emt 0:00:03]} a5 {[%emt 0:00:02]} 39. a3 {[%emt 0:00:02]} c4 {[%emt 0:00:03]} 40. g3 {[%emt 0:00:37]} g5 {[%emt 0:00:02]} 41. a4 {[%emt 0:00:41]} Kc5 {[%emt 0:00:04]} 42. gxf4 {[%emt 0:00:13]} gxf4 {[%emt 0:00:01]} 43. h3 {[%emt 0:00:10]} h6 {[%emt 0:00:01]} 44. h4 {[%emt 0:00:44]} h5 {[%emt 0:00:03]} 45. Kc2 {[%emt 0:00:11]} Kb4 {[%emt 0:00:03]} 46. Kb2 {[%emt 0:00:02]} c3+ {[%emt 0:00:02]} 47. Kc2 {[%emt 0:00:02]} Kc4 {[%emt 0:00:01]} 48. Kd1 {[%emt 0:00:10]} Kd3 {[%emt 0:00:03]} 49. Kc1 {[%emt 0:00:01]} c2 {[%emt 0:00:02]} 0-1